bitfinex/quotes_SOLUSD_20250930
["timestamp","ask_amount","ask_price","bid_price","bid_amount"]
[1759249357838,7.29041331,206.42,206.41,34.96]
[1759249358148,7.29041331,206.42,206.35,0.14216157]
[1759249358452,7.29041331,206.42,206.34,14.27559401]
[1759249358453,6.60041331,206.4,206.36,34.96]
[1759249358632,7.29041331,206.4,206.36,34.96]
[1759249358950,4.84519598,206.39,206.37,34.96]
[1759249359332,6.60041331,206.4,206.37,34.96]
[1759249360048,12.13546307,206.4,206.37,34.96]
[1759249360239,7.29041331,206.4,206.37,34.96]
[1759249360445,6.60041331,206.42,206.37,34.96]
[1759249360759,7.29041331,206.42,206.37,34.96]
[1759249360931,5.53449181,206.42,206.37,35.64]
[1759249361133,0.69,206.41,206.37,34.96]
[1759249361439,11.44490512,206.42,206.38,0.68]
[1759249361632,0.69,206.41,206.37,34.96]
[1759249361828,4.84427808,206.43,206.37,34.96]
[1759249362035,6.60041331,206.42,206.37,34.96]
[1759249362260,11.44469139,206.43,206.38,0.68]
[1759249362556,0.69,206.45,206.39,0.68]
[1759249362758,5.5338095,206.45,206.39,0.68]
[1759249362945,6.60041331,206.44,206.38,0.28432314]
[1759249363259,11.44467044,206.43,206.38,0.28432314]
[1759249363460,5.53425713,206.43,206.38,0.28432314]
[1759249363750,11.44467044,206.43,206.34,0.68]
[1759249363953,11.44444996,206.44,206.36,13.59559401]
[1759249364164,6.60041331,206.41,206.34,6.60041331]
[1759249364346,6.60041331,206.41,206.35,34.94]
[1759249364539,0.69,206.4,206.31,6.60041331]
[1759249364743,6.60041331,206.41,206.33,20.19600732]
[1759249365040,6.60041331,206.41,206.34,0.96432314]
[1759249365240,4.84473787,206.41,206.34,0.96432314]
[1759249365450,6.60041331,206.42,206.36,0.28432314]
[1759249365654,11.44491974,206.42,206.37,34.96]
[1759249365972,7.29041331,206.42,206.37,34.96]
[1759249366145,7.29041331,206.41,206.37,34.96]
[1759249366546,6.60041331,206.38,206.32,0.14216157]
[1759249366866,6.60041331,206.38,206.33,34.94]
[1759249367155,4.84566555,206.37,206.33,35.62]
[1759249367561,12.13585992,206.38,206.33,35.62]
[1759249368347,7.29041331,206.38,206.33,40.46658297]
[1759249368555,7.29041331,206.4,206.33,39.78658297]
[1759249368753,6.60041331,206.41,206.34,0.96432314]
[1759249368960,4.8445152,206.42,206.35,7.28041331]
[1759249369154,7.29041331,206.43,206.35,7.28041331]
[1759249369155,7.29041331,206.43,206.36,4.84590036]
[1759249369355,4.84402247,206.44,206.37,35.6]
[1759249369742,7.29041331,206.43,206.37,34.92]
[1759249370053,6.60041331,206.43,206.37,34.92]
[1759249370370,0.69,206.42,206.35,7.28041331]
[1759249370548,4.84402247,206.44,206.38,34.92]
[1759249370752,11.44443578,206.44,206.38,34.92]
[1759249370952,6.60041331,206.42,206.38,34.92]
[1759249371154,4.84472651,206.41,206.35,5.52612574]
[1759249371354,4.84472651,206.41,206.36,34.9]
[1759249371667,0.69,206.43,206.37,0.68]
[1759249371848,7.29041331,206.43,206.38,34.9]
[1759249372170,6.60041331,206.43,206.39,0.68]
[1759249372367,17.64325744,206.45,206.39,0.68]
[1759249372368,6.60041331,206.44,206.39,0.68]
[1759249372572,5.53378784,206.45,206.38,34.9]
[1759249372784,12.13420115,206.45,206.4,0.68]
[1759249373355,0.68,206.44,206.38,39.74526594]
[1759249373556,4.84378784,206.45,206.38,40.40526594]
[1759249373763,6.60041331,206.44,206.38,40.40526594]
[1759249374268,6.60041331,206.43,206.38,34.9]
[1759249374457,6.60041331,206.43,206.39,0.66]
[1759249375364,5.52449181,206.42,206.37,0.28432314]
[1759249375670,4.84449181,206.42,206.4,34.86]
[1759249376249,6.60041331,206.43,206.4,34.86]
[1759249376448,12.12471337,206.43,206.4,34.86]
[1759249376749,0.68,206.43,206.4,34.86]
[1759249377046,7.28041331,206.43,206.4,34.86]
[1759249377469,6.60041331,206.47,206.41,14.25559401]
[1759249377977,5.52326171,206.48,206.42,0.66]
[1759249378183,12.12367502,206.48,206.42,0.66]
[1759249378746,11.44367502,206.48,206.42,0.66]
[1759249379368,12.12367502,206.48,206.41,4.84466178]
[1759249379850,12.12367502,206.48,206.41,5.50466178]
[1759249380251,7.28041331,206.48,206.42,0.28432314]
[1759249380478,12.12355768,206.48,206.42,0.28432314]
[1759249380849,12.12355768,206.48,206.41,14.25559401]
[1759249380850,6.60041331,206.46,206.41,0.28432314]
[1759249381171,17.63085455,206.48,206.41,0.28432314]
[1759249381373,11.44396654,206.46,206.4,34.86]
[1759249381579,6.60041331,206.41,206.36,0.66]
[1759249381776,6.60041331,206.41,206.37,34.82]
[1759249382270,6.60041331,206.41,206.37,35.48]
[1759249382656,6.60041331,206.38,206.31,6.60041331]
[1759249382959,6.60041331,206.44,206.37,0.28432314]
[1759249383269,6.60041331,206.44,206.38,35.46]
[1759249383461,11.44456372,206.44,206.38,40.30530194]
[1759249383976,11.44456372,206.44,206.38,35.46]
[1759249384160,11.44456372,206.44,206.36,13.59559401]
[1759249384161,6.60041331,206.42,206.39,34.84]
[1759249384355,6.60041331,206.4,206.39,34.84]
[1759249384592,7.28041331,206.4,206.39,34.84]
[1759249385271,7.28041331,206.4,206.25,38.74406056]
[1759249385454,6.60041331,206.38,206.31,20.19600732]
[1759249385654,6.60041331,206.37,206.32,34.84]
[1759249385854,6.60041331,206.37,206.32,35.5]
[1759249386062,6.60041331,206.38,206.33,0.66]
[1759249386270,12.12563596,206.39,206.34,13.59559401]
[1759249386477,6.60041331,206.37,206.32,34.84]
[1759249386780,6.60041331,206.35,206.28,0.66]
[1759249387084,6.60041331,206.34,206.29,34.84]
[1759249387275,6.60041331,206.37,206.3,20.85600732]
[1759249387481,0.68,206.37,206.3,25.70315914]
[1759249387657,6.60041331,206.37,206.31,0.66]
[1759249387865,11.44606645,206.38,206.31,7.26041331]
[1759249388978,11.44606645,206.38,206.3,18.44274583]
[1759249388979,6.60041331,206.36,206.3,13.59559401]
[1759249389673,7.28041331,206.35,206.31,34.84]
[1759249389988,16.95923003,206.38,206.31,34.84]
[1759249389989,7.28041331,206.34,206.31,34.84]
[1759249390360,5.1510566,206.34,206.31,34.84]
[1759249390584,4.4710566,206.32,206.25,20.01011982]
[1759249390791,4.4710566,206.31,206.26,48.69991715]
[1759249390970,5.1510566,206.3,206.24,37.8]
[1759249391162,5.1510566,206.3,206.27,34.82]
[1759249391163,0.68,206.3,206.27,34.82]
[1759249391364,4.4710566,206.32,206.27,34.82]
[1759249391690,0.68,206.31,206.27,34.82]
[1759249391866,0.68,206.3,206.27,34.82]
[1759249392180,0.68,206.3,206.28,34.84]
[1759249392390,5.1510566,206.3,206.24,37.8]
[1759249392595,4.4710566,206.29,206.25,34.82]
[1759249392777,5.1510566,206.28,206.25,34.82]
[1759249393088,4.84801473,206.27,206.25,34.82]
[1759249393887,4.84801473,206.27,206.22,0.66]
[1759249394065,0.68,206.26,206.23,34.82]
[1759249394267,9.31887196,206.28,206.23,34.82]
[1759249394468,5.52781536,206.28,206.23,35.48]
[1759249394687,0.68,206.27,206.23,34.82]
[1759249394891,4.4710566,206.29,206.23,35.48]
[1759249395077,17.26944075,206.3,206.23,39.9510566]
[1759249395886,12.79838415,206.3,206.23,39.9510566]
[1759249396085,17.26944075,206.3,206.23,39.9510566]
[1759249396294,5.1510566,206.3,206.23,39.9510566]
[1759249396582,5.1510566,206.3,206.24,34.8]
[1759249396583,4.4710566,206.29,206.24,34.8]
[1759249396779,5.1510566,206.28,206.24,34.8]
[1759249396981,5.52801473,206.27,206.24,34.8]
[1759249397290,9.31885984,206.28,206.24,34.8]
[1759249397585,5.53780324,206.28,206.24,34.8]
[1759249398170,4.4710566,206.29,206.25,5.1210566]
[1759249398171,4.84757248,206.29,206.25,5.1210566]
[1759249398498,4.84757248,206.29,206.26,0.65]
[1759249398683,0.69,206.28,206.24,34.8]
[1759249398884,4.84824978,206.26,206.24,34.8]
[1759249399193,4.84777971,206.28,206.25,0.65]
[1759249400086,4.84710575,206.31,206.26,0.65]
[1759249400391,0.69,206.3,206.25,1.68664774]
[1759249400692,4.84683798,206.33,206.28,1.68664774]
[1759249400987,4.84641398,206.34,206.29,37.13664774]
[1759249401295,5.53641398,206.34,206.29,37.13664774]
[1759249402291,5.53641398,206.34,206.29,39.92073886]
[1759249403391,4.84641398,206.34,206.3,0.68]
[1759249404165,5.54641398,206.34,206.3,0.68]
[1759249404586,4.84641398,206.34,206.3,0.68]
[1759249404771,4.47073886,206.37,206.31,0.68]
[1759249404966,10.01616961,206.38,206.32,4.47073886]
[1759249405171,4.47073886,206.37,206.33,34.76]
[1759249405391,0.7,206.36,206.33,34.76]
[1759249405596,4.84543075,206.38,206.34,0.68]
[1759249405893,4.84543075,206.38,206.35,0.68]
[1759249406270,5.54543075,206.38,206.33,39.23073886]
[1759249406467,10.01616961,206.38,206.34,34.78]
[1759249406677,10.01616961,206.38,206.34,35.46]
[1759249406877,9.31616961,206.38,206.34,35.46]
[1759249407140,10.01616961,206.38,206.34,34.78]
[1759249407900,9.31616961,206.38,206.34,35.46]
[1759249408280,22.1297465,206.38,206.34,34.78]
[1759249408484,0.7,206.37,206.34,34.78]
[1759249408674,4.47073886,206.35,206.28,4.47073886]
[1759249408989,4.47073886,206.34,206.29,34.76]
[1759249409193,4.47073886,206.34,206.29,35.44]
[1759249409375,0.7,206.34,206.29,0.68]
[1759249409570,0.7,206.33,206.3,34.76]
[1759249409783,4.47073886,206.34,206.3,34.76]
[1759249410091,4.47073886,206.34,206.28,0.68]
[1759249410288,4.47073886,206.34,206.31,34.76]
[1759249410474,4.84660495,206.33,206.28,0.68]
[1759249410678,4.84660495,206.33,206.31,34.74]
[1759249410882,4.84660495,206.33,206.28,0.68]
[1759249411087,4.84660495,206.33,206.29,35.42]
[1759249411290,4.84660495,206.33,206.25,13.59559401]
[1759249411291,4.47073886,206.31,206.26,0.68]
[1759249411504,4.47073886,206.31,206.27,34.74]
[1759249411701,4.47073886,206.32,206.28,0.68]
[1759249411903,0.7,206.31,206.27,34.74]
[1759249412082,4.47073886,206.32,206.27,35.42]
[1759249412396,5.17073886,206.32,206.27,35.42]
[1759249412576,4.84707479,206.31,206.27,35.42]
[1759249413199,5.17073886,206.3,206.24,0.68]
[1759249413399,0.7,206.3,206.23,0.68]
[1759249413713,16.96476176,206.31,206.25,34.74]
[1759249413873,4.84707479,206.31,206.26,5.15073886]
[1759249414206,4.84707479,206.31,206.27,0.68]
[1759249414600,4.84683986,206.32,206.28,0.68]
[1759249414778,4.84683986,206.32,206.29,34.76]
[1759249414982,4.84683986,206.32,206.3,0.68]
[1759249415583,4.84657293,206.34,206.29,39.23073886]
[1759249415796,4.84657293,206.34,206.31,0.68]
[1759249416189,4.84657293,206.34,206.29,39.91073886]
[1759249416499,4.84657293,206.34,206.3,0.68]
[1759249417202,4.8461352,206.35,206.3,0.68]
[1759249417876,4.84593263,206.36,206.33,4.47073886]
[1759249418072,4.84496124,206.4,206.34,39.89073886]
[1759249418277,5.17073886,206.39,206.34,34.74]
[1759249418500,5.17073886,206.38,206.34,34.74]
[1759249418697,0.7,206.37,206.34,34.74]
[1759249418899,4.47073886,206.35,206.34,34.74]
[1759249419287,4.8461352,206.35,206.34,34.74]
[1759249421501,9.31663922,206.36,206.34,34.74]
[1759249421703,4.47073886,206.35,206.34,34.74]
[1759249422087,5.17073886,206.35,206.34,34.74]
[1759249422287,0.7,206.35,206.31,34.76]
[1759249422592,5.17073886,206.35,206.31,34.76]
[1759249422788,16.96065128,206.36,206.31,34.76]
[1759249423008,0.7,206.35,206.31,34.76]
[1759249423301,21.43139014,206.36,206.31,35.44]
[1759249423484,22.13139014,206.36,206.31,35.44]
[1759249423884,21.43139014,206.36,206.32,0.68]
[1759249424080,21.43139014,206.36,206.31,34.76]
[1759249424288,18.64653727,206.36,206.32,0.68]
[1759249424702,18.64653727,206.36,206.31,34.76]
[1759249424881,0.7,206.35,206.31,34.76]
[1759249425083,2.38588599,206.34,206.31,34.76]
[1759249425498,7.23249094,206.33,206.31,34.76]
[1759249425696,2.38588599,206.32,206.25,0.68]
[1759249425914,1.68588599,206.28,206.26,34.74]
[1759249426125,16.96311733,206.33,206.26,34.74]
[1759249426126,2.38588599,206.27,206.26,34.74]
[1759249426415,1.68588599,206.27,206.26,34.74]
[1759249427597,4.84801473,206.27,206.26,34.74]
[1759249427992,0.7,206.34,206.26,37.10588599]
[1759249428198,1.68588599,206.33,206.27,0.68]
[1759249428416,2.38588599,206.34,206.27,2.36588599]
[1759249428794,20.8,206.33,206.27,2.36588599]
[1759249429324,20.8,206.33,206.28,1.68588599]
[1759249429829,25.6461352,206.35,206.31,1.68588599]
[1759249430127,4.84543075,206.38,206.32,2.36588599]
[1759249430420,4.84543075,206.38,206.33,2.36588599]
[1759249430793,4.84543075,206.38,206.34,0.68]
[1759249431215,4.84543075,206.38,206.35,0.68]
[1759249431399,4.84543075,206.38,206.35,2.36588599]
[1759249431609,4.84519598,206.39,206.35,37.10588599]
[1759249431814,4.84519598,206.39,206.36,0.68]
[1759249432115,4.84519598,206.39,206.37,0.68]
[1759249432514,12.11173223,206.42,206.37,0.68]
[1759249432713,4.84472651,206.41,206.38,0.68]
[1759249433703,12.11173223,206.42,206.38,0.68]
[1759249433704,4.84449181,206.42,206.38,0.68]
[1759249433905,2.38588599,206.43,206.37,1.68588599]
[1759249434114,2.38588599,206.43,206.36,15.56580314]
[1759249435023,0.7,206.43,206.37,1.68588599]
[1759249435322,1.68588599,206.46,206.39,1.68588599]
[1759249435522,12.8082966,206.47,206.41,1.68588599]
[1759249435829,12.8082966,206.47,206.41,36.44588599]
[1759249435830,19.33750123,206.47,206.41,36.44588599]
[1759249436206,17.65161524,206.47,206.41,36.44588599]
[1759249436400,17.65161524,206.47,206.41,37.10588599]
[1759249436401,16.95161524,206.47,206.41,37.10588599]
[1759249437005,4.84331864,206.47,206.42,1.68588599]
[1759249437199,4.84331864,206.47,206.43,0.66]
[1759249437618,4.84331864,206.47,206.43,1.68588599]
[1759249437829,16.95093044,206.48,206.43,2.34588599]
[1759249439027,16.95093044,206.48,206.41,34.76]
[1759249439028,0.7,206.47,206.41,34.76]
[1759249439225,2.38588599,206.47,206.41,36.44588599]
[1759249439727,4.84425713,206.43,206.41,34.74]
[1759249440236,19.33934951,206.45,206.41,34.74]
[1759249440539,4.84399392,206.45,206.41,34.74]
[1759249440720,4.84399392,206.45,206.42,0.66]
[1759249441299,4.84399392,206.45,206.41,34.74]
[1759249441540,4.84399392,206.45,206.41,35.4]
[1759249441716,6.52987991,206.45,206.41,34.74]
[1759249441929,18.63934951,206.45,206.41,34.74]
[1759249442229,4.84399392,206.45,206.41,34.74]
[1759249442416,1.68588599,206.42,206.36,1.68588599]
[1759249442610,1.68588599,206.42,206.36,37.08588599]
[1759249443741,1.68588599,206.38,206.33,0.66]
[1759249443905,1.68588599,206.37,206.33,34.78]
[1759249444105,1.68588599,206.37,206.33,35.44]
[1759249444307,1.68588599,206.37,206.34,0.66]
[1759249444535,1.68588599,206.38,206.34,0.66]
[1759249444709,4.84566555,206.37,206.33,34.78]
[1759249444910,4.84566555,206.37,206.33,35.44]
[1759249445143,4.84566555,206.37,206.34,0.66]
[1759249445517,4.84566555,206.37,206.35,0.66]
[1759249445839,12.11157553,206.42,206.36,0.66]
[1759249446041,12.11157553,206.42,206.37,34.76]
[1759249446042,18.64242878,206.41,206.37,34.76]
[1759249446225,2.38588599,206.4,206.37,34.76]
[1759249446431,1.68588599,206.39,206.37,34.76]
[1759249446631,1.68588599,206.39,206.34,13.59559401]
[1759249446810,6.53202119,206.35,206.28,0.66]
[1759249447118,1.68588599,206.33,206.28,18.26]
[1759249447314,16.96147321,206.35,206.29,0.66]
[1759249447619,4.8461352,206.35,206.3,1.68588599]
[1759249447812,4.8461352,206.35,206.31,0.66]
[1759249448007,6.53202119,206.35,206.29,1.68588599]
[1759249448510,6.53202119,206.35,206.3,35.44]
[1759249448711,4.8461352,206.35,206.31,0.66]
[1759249449527,4.8461352,206.35,206.3,36.46588599]
[1759249449528,4.8461352,206.35,206.32,0.66]
[1759249449736,24.22589603,206.4,206.33,2.34588599]
[1759249449737,6.53084723,206.4,206.33,2.34588599]
[1759249449945,4.84496124,206.4,206.35,1.68588599]
[1759249450111,4.84496124,206.4,206.36,0.66]
[1759249450312,4.84496124,206.4,206.35,36.46588599]
[1759249450531,5.54496124,206.4,206.35,37.12588599]
[1759249451120,0.7,206.39,206.35,34.78]
[1759249451316,2.38588599,206.38,206.32,0.66]
[1759249451612,1.68588599,206.36,206.33,34.76]
[1759249452020,1.68588599,206.37,206.33,34.76]
[1759249452333,0.7,206.36,206.33,34.76]
[1759249452707,4.8461352,206.35,206.33,34.76]
[1759249453020,4.8461352,206.35,206.3,16.88978864]
[1759249453224,20.29566784,206.35,206.31,34.76]
[1759249454116,19.59566784,206.35,206.31,35.42]
[1759249454315,19.59566784,206.35,206.31,34.76]
[1759249454316,20.29566784,206.35,206.31,34.76]
[1759249454513,2.63419463,206.33,206.31,34.76]
[1759249454726,4.84660495,206.33,206.31,34.76]
[1759249456430,16.96229523,206.34,206.31,34.76]
[1759249456614,17.66229523,206.34,206.31,34.76]
[1759249456809,0.7,206.33,206.31,34.76]
[1759249457012,3.33419463,206.33,206.31,34.76]
[1759249457225,3.32419463,206.32,206.24,3.29419463]
[1759249457428,2.63419463,206.3,206.25,34.72]
[1759249457634,3.32419463,206.31,206.25,35.43]
[1759249457831,0.69,206.31,206.26,2.63419463]
[1759249458014,0.69,206.31,206.26,3.34419463]
[1759249458424,16.96558409,206.3,206.26,3.34419463]
[1759249458630,17.65558409,206.3,206.26,2.63419463]
[1759249458832,16.96558409,206.3,206.26,3.34419463]
[1759249459134,16.96558409,206.3,206.25,37.35419463]
[1759249459135,17.65558409,206.3,206.25,37.35419463]
[1759249459438,0.69,206.29,206.25,37.35419463]
[1759249459675,2.63419463,206.27,206.21,0.2]
[1759249459828,0.69,206.26,206.21,37.55419463]
[1759249460018,0.69,206.25,206.21,34.92]
[1759249460213,0.69,206.24,206.21,34.92]
[1759249460625,5.53895505,206.23,206.21,34.92]
[1759249460832,0.69,206.22,206.21,34.92]
[1759249461028,0.69,206.22,206.21,0.2]
[1759249461029,3.32419463,206.22,206.21,0.2]
[1759249462654,8.17338481,206.22,206.21,0.2]
[1759249463222,7.48338481,206.22,206.21,0.2]
[1759249463452,20.8,206.25,206.21,0.92]
[1759249463646,4.84849785,206.25,206.22,2.63419463]
[1759249463966,4.84826148,206.26,206.23,3.35419463]
[1759249464178,4.84826148,206.26,206.24,0.72]
[1759249464552,4.84803897,206.27,206.24,3.35419463]
[1759249464752,4.84730974,206.3,206.24,3.35419463]
[1759249465176,16.96558409,206.3,206.24,3.35419463]
[1759249466368,19.59977872,206.3,206.24,3.35419463]
[1759249466573,5.49730974,206.3,206.24,0.72]
[1759249466861,4.84730974,206.3,206.27,2.63419463]
[1759249467063,4.84730974,206.3,206.28,3.35419463]
[1759249467576,4.84683986,206.32,206.28,3.35419463]
[1759249468073,4.84683986,206.32,206.28,2.63419463]
[1759249468277,4.84683986,206.32,206.28,0.72]
[1759249468453,16.96311733,206.33,206.28,0.72]
[1759249468653,19.59731196,206.33,206.27,2.63419463]
[1759249468857,19.59731196,206.33,206.23,34.74]
[1759249468858,2.63419463,206.31,206.23,34.74]
[1759249469058,2.63419463,206.31,206.25,2.63419463]
[1759249469869,19.59731196,206.33,206.27,2.63419463]
[1759249470058,16.96311733,206.33,206.28,2.63419463]
[1759249470371,0.65,206.32,206.26,0.72]
[1759249470670,4.84707479,206.31,206.27,2.63419463]
[1759249470870,4.84707479,206.31,206.28,0.72]
[1759249471464,4.84707479,206.31,206.27,2.63419463]
[1759249471465,4.84707479,206.31,206.29,0.72]
[1759249471771,4.84707479,206.31,206.28,2.63419463]
[1759249471980,4.84707479,206.31,206.29,0.72]
[1759249472497,4.84707479,206.31,206.28,3.35419463]
[1759249472666,20.24731196,206.33,206.27,2.63419463]
[1759249472975,3.28419463,206.32,206.25,2.63419463]
[1759249473556,2.63419463,206.29,206.23,2.63419463]
[1759249473886,3.28419463,206.29,206.24,34.7]
[1759249474075,41.19614209,206.33,206.25,0.72]
[1759249474076,0.65,206.32,206.25,0.72]
[1759249474270,19.59731196,206.33,206.26,2.63419463]
[1759249474471,16.96311733,206.33,206.29,2.63419463]
[1759249474981,17.61311733,206.33,206.28,2.63419463]
[1759249475172,17.61311733,206.33,206.28,3.35419463]
[1759249475552,16.96311733,206.33,206.29,0.72]
[1759249475970,20.24731196,206.33,206.27,2.63419463]
[1759249476381,24.22296502,206.33,206.27,6.60984769]
[1759249476781,4.84660495,206.33,206.28,7.32984769]
[1759249476980,4.84660495,206.33,206.29,7.32984769]
[1759249477564,4.84660495,206.33,206.3,0.72]
[1759249477867,4.84638295,206.34,206.31,0.72]
[1759249478168,4.84638295,206.34,206.3,6.60984769]
[1759249478362,4.84638295,206.34,206.3,7.32984769]
[1759249478557,16.96114876,206.36,206.3,7.32984769]
[1759249478762,16.96114876,206.36,206.3,42.02984769]
[1759249479186,24.22099645,206.36,206.3,41.30984769]
[1759249480181,6.60984769,206.32,206.24,0.72]
[1759249480381,6.60984769,206.3,206.25,34.7]
[1759249480586,16.967229,206.28,206.21,0.2]
[1759249480768,6.60984769,206.27,206.22,34.7]
[1759249480965,6.60984769,206.26,206.21,0.2]
[1759249481166,6.60984769,206.26,206.21,34.9]
[1759249481365,7.25984769,206.25,206.21,34.9]
[1759249481677,7.25984769,206.24,206.21,0.2]
[1759249481877,0.65,206.24,206.21,0.2]
[1759249482181,6.60984769,206.25,206.21,0.2]
[1759249482481,0.65,206.26,206.21,0.2]
[1759249482682,4.84848484,206.25,206.21,0.92]
[1759249483182,5.49848484,206.25,206.21,0.2]
[1759249483479,17.61969696,206.25,206.21,0.2]
[1759249483669,24.22954465,206.25,206.21,0.2]
[1759249484184,5.49848484,206.25,206.21,0.2]
[1759249484380,12.10833253,206.25,206.21,0.2]
[1759249485083,23.57954465,206.25,206.21,0.2]
[1759249485378,6.60984769,206.23,206.21,0.2]
[1759249485576,6.60984769,206.22,206.21,0.2]
[1759249485779,7.25984769,206.22,206.21,0.2]
[1759249486383,24.22954465,206.25,206.21,0.2]
[1759249486584,6.60984769,206.24,206.21,0.2]
[1759249486885,0.65,206.24,206.21,0.2]
[1759249487385,4.84895505,206.23,206.21,0.2]
[1759249489076,0.65,206.22,206.21,0.2]
[1759249489584,5.49919018,206.22,206.21,0.2]
[1759249489791,12.10903787,206.22,206.21,0.2]
[1759249490971,4.84919018,206.22,206.21,0.2]
[1759249492273,5.49919018,206.22,206.21,0.2]
[1759249492582,4.84919018,206.22,206.21,0.2]
[1759249492790,26.29919018,206.22,206.21,0.2]
[1759249492993,25.64919018,206.22,206.21,0.2]
[1759249494376,4.84919018,206.22,206.21,0.2]
[1759249495577,4.84895505,206.23,206.21,0.2]
[1759249495804,4.84895505,206.23,206.22,0.71]
[1759249496095,11.4576274,206.28,206.22,7.31984769]
[1759249496276,11.4576274,206.28,206.23,6.60984769]
[1759249496277,12.12003684,206.27,206.23,6.60984769]
[1759249496484,12.12003684,206.27,206.23,41.99984769]
[1759249496888,6.60984769,206.29,206.25,6.60984769]
[1759249496889,4.84756436,206.29,206.25,6.60984769]
[1759249497090,4.84756436,206.29,206.26,7.31984769]
[1759249497594,4.84756436,206.29,206.26,0.71]
[1759249497801,12.11872837,206.3,206.26,0.71]
[1759249497802,16.96603811,206.3,206.26,0.71]
[1759249497977,17.62603811,206.3,206.26,0.71]
[1759249498796,17.62603811,206.3,206.23,34.68]
[1759249498997,17.62603811,206.3,206.25,6.60984769]
[1759249499174,17.62603811,206.3,206.25,7.31984769]
[1759249499369,17.62603811,206.3,206.25,6.60984769]
[1759249499592,25.64730974,206.3,206.26,7.31984769]
[1759249499898,4.84730974,206.3,206.27,0.71]
[1759249500201,4.84730974,206.3,206.26,6.60984769]
[1759249500382,4.84705942,206.32,206.28,6.60984769]
[1759249500581,0.66,206.39,206.31,6.60984769]
[1759249500783,6.60984769,206.37,206.32,34.68]
[1759249500986,0.66,206.36,206.32,34.68]
[1759249501677,4.8461352,206.35,206.32,34.68]
[1759249502285,7.13492333,206.4,206.32,34.68]
[1759249502286,4.84543075,206.38,206.34,6.60984769]
[1759249502487,4.84521352,206.39,206.35,6.60984769]
[1759249502708,4.84449181,206.42,206.38,6.60984769]
[1759249503005,4.84449181,206.42,206.38,7.31984769]
[1759249503222,4.84449181,206.42,206.38,0.71]
[1759249503391,4.84449181,206.42,206.37,34.68]
[1759249503392,5.50449181,206.42,206.37,34.68]
[1759249503596,4.84449181,206.42,206.38,35.39]
[1759249503901,4.84449181,206.42,206.38,41.99984769]
[1759249504422,4.84378784,206.45,206.4,6.60984769]
[1759249504604,4.84378784,206.45,206.41,7.31984769]
[1759249504781,4.84378784,206.45,206.42,0.71]
[1759249504987,4.84378784,206.45,206.41,6.60984769]
[1759249504988,16.95325744,206.45,206.41,6.60984769]
[1759249505192,16.95325744,206.45,206.41,7.31984769]
[1759249505915,16.95325744,206.45,206.41,0.71]
[1759249506390,17.61325744,206.45,206.4,6.60984769]
[1759249506592,16.95325744,206.45,206.4,6.60984769]
[1759249506888,16.95325744,206.45,206.41,0.71]
[1759249507220,16.95325744,206.45,206.41,7.31984769]
[1759249507598,17.61325744,206.45,206.41,6.60984769]
[1759249508203,17.61325744,206.45,206.4,6.60984769]
[1759249508511,17.61325744,206.45,206.41,34.66]
[1759249508731,6.60984769,206.42,206.24,44.24332553]
[1759249508934,6.60984769,206.4,206.34,7.31984769]
[1759249509224,6.60984769,206.4,206.32,48.25559401]
[1759249509225,6.60984769,206.41,206.35,41.97984769]
[1759249509508,6.60984769,206.41,206.35,0.71]
[1759249509509,6.60984769,206.4,206.35,0.71]
[1759249509682,6.60984769,206.38,206.31,0.71]
[1759249509882,6.60984769,206.37,206.32,34.66]
[1759249510108,7.26984769,206.36,206.32,34.66]
[1759249510412,6.60984769,206.36,206.33,34.66]
[1759249510600,16.95818595,206.39,206.33,34.66]
[1759249510601,6.60984769,206.37,206.33,34.66]
[1759249510800,6.60984769,206.38,206.34,0.71]
[1759249511111,6.60984769,206.38,206.33,34.66]
[1759249511309,7.26984769,206.37,206.33,34.66]
[1759249511705,17.61818595,206.39,206.33,34.66]